bitfinex-derivatives/quotes_SOLF0:USTF0_20250730
["timestamp","ask_amount","ask_price","bid_price","bid_amount"]
[1753844404543,3.0,181.83,181.8,5.5013]
[1753844404746,3.0,181.83,181.81,3.13]
[1753844404942,3.0,181.83,181.81,5.5009]
[1753844405146,3.0,181.83,181.82,3.13]
[1753844406344,3.0,181.83,181.82,8.6308]
[1753844409047,3.0,181.85,181.76,126.51293103]
[1753844409351,3.0,181.86,181.83,3.13]
[1753844410050,3.0,181.86,181.84,3.13]
[1753844410442,4.6201141,181.91,181.76,126.51293103]
[1753844410647,7.04299446,181.9,181.77,3.13]
[1753844410849,5.4998,181.86,181.77,3.13]
[1753844411048,3.0,181.85,181.81,3.13]
[1753844411349,8.5001,181.85,181.81,3.13]
[1753844411541,5.5001,181.85,181.81,3.13]
[1753844411744,3.0,181.84,181.79,3.13]
[1753844411945,3.0,181.81,181.79,3.13]
[1753844412145,3.0,181.81,181.77,8.6322]
[1753844413050,8.5012,181.81,181.77,8.6322]
[1753844413255,8.5012,181.81,181.78,8.632]
[1753844413256,3.0,181.8,181.78,8.632]
[1753844414054,3.0,181.8,181.76,117.44]
[1753844414055,3.0,181.8,181.77,5.5022]
[1753844414254,3.0,181.8,181.77,8.6322]
[1753844414455,3.0,181.8,181.77,3.13]
[1753844414649,3.0,181.8,181.78,3.13]
[1753844415249,3.0,181.8,181.78,5.502]
[1753844415754,3.0,181.8,181.78,8.632]
[1753844417555,3.0,181.8,181.79,5.5017]
[1753844417756,3.0,181.8,181.79,8.6317]
[1753844417960,3.0,181.86,181.77,3.13]
[1753844418162,3.0,181.84,181.77,3.13]
[1753844418964,3.0,181.83,181.82,3.13]
[1753844420266,3.0,181.83,181.82,8.6308]
[1753844420974,3.0,181.83,181.82,3.13]
[1753844421167,3.0,181.83,181.81,8.631]
[1753844421368,3.0,181.83,181.79,3.15]
[1753844421669,3.0,181.83,181.8,8.6514]
[1753844421978,8.5005,181.83,181.8,8.6514]
[1753844422176,3.16,181.82,181.8,8.6514]
[1753844422667,3.16,181.82,181.81,5.5011]
[1753844422864,3.16,181.82,181.81,8.6511]
[1753844423173,3.16,181.84,181.81,5.5011]
[1753844423474,3.16,181.87,181.82,3.15]
[1753844423670,4.04312928,181.86,181.82,3.15]
[1753844423872,3.16,181.84,181.82,3.15]
[1753844424270,8.6602,181.84,181.82,3.15]
[1753844424472,3.16,181.83,181.81,5.5011]
[1753844424870,3.16,181.87,181.77,3.15]
[1753844425073,3.16,181.85,181.77,3.15]
[1753844425274,3.16,181.83,181.77,3.15]
[1753844425675,3.16,181.82,181.77,3.15]
[1753844426876,3.16,181.82,181.79,5.5015]
[1753844427076,3.16,181.82,181.79,8.6515]
[1753844427280,8.6608,181.82,181.79,8.6515]
[1753844427482,3.16,181.81,181.79,8.6515]
[1753844427979,3.16,181.81,181.79,3.15]
[1753844428379,3.16,181.8,181.79,3.15]
[1753844428675,3.16,181.82,181.79,3.15]
[1753844429476,3.16,181.82,181.8,5.5012]
[1753844429778,3.16,181.82,181.81,3.15]
[1753844430681,4.6201141,181.88,181.81,3.15]
[1753844430871,3.16,181.86,181.81,3.15]
[1753844431075,3.16,181.84,181.81,3.15]
[1753844431377,3.16,181.84,181.82,3.15]
[1753844431881,3.16,181.83,181.81,3.15]
[1753844432682,8.6605,181.83,181.81,3.15]
[1753844432882,3.16,181.82,181.8,5.5012]
[1753844433087,5.5005,181.83,181.81,3.15]
[1753844433289,8.6605,181.83,181.82,3.15]
[1753844433582,3.16,181.88,181.77,3.15]
[1753844433779,3.16,181.86,181.77,3.15]
[1753844433992,7.20120671,181.85,181.83,5.5004]
[1753844434180,3.16,181.85,181.78,3.15]
[1753844434484,3.16,181.87,181.78,3.15]
[1753844434680,3.16,181.86,181.78,3.15]
[1753844435985,3.16,181.85,181.79,3.15]
[1753844436680,3.16,181.83,181.81,5.5009]
[1753844437287,3.16,181.83,181.82,5.5008]
[1753844437786,3.16,181.83,181.82,8.6508]
[1753844440186,3.16,181.83,181.82,5.5008]
[1753844440387,3.16,181.83,181.82,8.6508]
[1753844440887,3.16,181.83,181.82,5.5008]
[1753844441985,3.16,181.83,181.76,117.44]
[1753844442284,3.16,181.83,181.77,3.15]
[1753844442486,3.16,181.82,181.8,5.5012]
[1753844442687,3.16,181.81,181.77,3.15]
[1753844443788,3.16,181.83,181.81,5.501]
[1753844444491,8.6605,181.83,181.8,5.5013]
[1753844444685,3.16,181.82,181.8,5.5013]
[1753844445287,3.16,181.82,181.81,5.5011]
[1753844445987,3.16,181.82,181.81,8.6511]
[1753844447592,3.16,181.84,181.82,3.15]
[1753844447791,3.16,181.85,181.83,3.15]
[1753844448391,3.16,181.85,181.82,5.5008]
[1753844448594,3.16,181.85,181.82,8.6508]
[1753844449293,5.5,181.85,181.82,8.6508]
[1753844449491,3.16,181.84,181.82,8.6508]
[1753844450197,5.5,181.85,181.82,8.6508]
[1753844450490,3.16,181.83,181.82,8.6508]
[1753844450886,3.16,181.83,181.77,3.15]
[1753844451082,3.16,181.83,181.74,4.10733267]
[1753844451294,5.5017,181.79,181.75,5.5027]
[1753844451590,3.01,181.81,181.74,3.15]
[1753844452182,3.01,181.81,181.76,5.5024]
[1753844452183,5.5015,181.8,181.76,5.5024]
[1753844452389,3.01,181.85,181.73,3.24]
[1753844452587,3.01,181.83,181.73,3.24]
[1753844452787,5.5011,181.81,181.76,5.5023]
[1753844452987,3.01,181.8,181.77,3.24]
[1753844453384,3.01,181.8,181.79,3.24]
[1753844453596,3.01,181.85,181.79,3.24]
[1753844453790,3.01,181.85,181.72,118.27753023]
[1753844453791,3.01,181.83,181.8,5.5011]
[1753844454092,3.01,181.82,181.81,3.24]
[1753844454294,3.01,181.81,181.8,3.24]
[1753844457594,3.01,181.81,181.73,3.24]
[1753844458187,3.01,181.81,181.77,8.7422]
[1753844459295,8.5113,181.81,181.77,8.7422]
[1753844459496,3.01,181.8,181.77,8.7422]
[1753844460797,3.01,181.85,181.78,3.24]
[1753844461098,3.01,181.83,181.72,118.27753023]
[1753844461395,3.01,181.81,181.8,8.7414]
[1753844461597,3.01,181.83,181.8,3.24]
[1753844461795,3.01,181.84,181.83,5.5003]
[1753844461998,3.01,181.84,181.83,8.7403]
[1753844462992,3.01,181.86,181.85,5.4998]
[1753844463197,3.01,181.86,181.85,8.7398]
[1753844464994,3.01,181.86,181.85,3.24]
[1753844465195,3.01,181.86,181.84,5.5001]
[1753844466202,3.01,181.86,181.83,5.5004]
[1753844466400,3.01,181.86,181.81,3.24]
[1753844466701,3.01,181.86,181.79,3.24]
[1753844466894,3.01,181.86,181.81,8.7408]
[1753844467201,5.5001,181.85,181.81,8.7408]
[1753844467400,3.01,181.9,181.78,3.24]
[1753844467597,3.01,181.88,181.78,3.24]
[1753844467798,5.5,181.85,181.78,3.24]
[1753844467999,3.01,181.84,181.81,8.7409]
[1753844468204,3.01,181.84,181.81,3.24]
[1753844468697,3.01,181.83,181.78,3.24]
[1753844469004,3.01,181.83,181.79,3.24]
[1753844469200,3.01,181.83,181.8,5.5012]
[1753844469496,3.01,181.83,181.8,3.24]
[1753844470303,3.01,181.83,181.81,5.5011]
[1753844470490,5.5003,181.84,181.77,117.28]
[1753844470691,3.01,181.81,181.78,3.24]
[1753844472405,3.01,181.81,181.8,8.7413]
[1753844473700,3.01,181.83,181.82,8.7408]
[1753844474797,3.01,181.83,181.81,8.741]
[1753844478005,3.01,181.83,181.82,5.5008]
[1753844478405,3.01,181.83,181.78,3.24]
[1753844478597,3.01,181.83,181.77,117.28]
[1753844479205,5.5013,181.81,181.78,5.5019]
[1753844479500,3.01,181.8,181.76,3.24]
[1753844479700,3.01,181.8,181.76,5.5024]
[1753844479701,3.01,181.79,181.76,5.5024]
[1753844480098,8.5117,181.79,181.76,5.5024]
[1753844480307,3.01,181.78,181.76,5.5024]
[1753844481008,3.01,181.78,181.75,5.5028]
[1753844481803,3.07,181.77,181.75,5.5028]
[1753844482311,3.07,181.77,181.74,3.24]
[1753844482312,8.5724,181.77,181.74,8.7431]
[1753844482605,3.07,181.76,181.74,8.7431]
[1753844483305,3.07,181.76,181.75,5.5029]
[1753844485010,3.07,181.76,181.75,8.7329]
[1753844487113,3.07,181.76,181.74,5.5032]
[1753844487507,5.5031,181.75,181.72,125.9936]
[1753844487716,3.07,181.74,181.67,3.23]
[1753844488010,3.07,181.74,181.68,3.23]
[1753844488215,3.07,181.72,181.7,5.5044]
[1753844488409,3.07,181.72,181.68,3.23]
[1753844489211,8.574,181.72,181.69,5.5045]
[1753844489411,3.07,181.71,181.69,8.7345]
[1753844489611,3.07,181.71,181.69,3.23]
[1753844489818,3.07,181.7,181.69,8.7347]
[1753844491210,3.07,181.74,181.67,117.26]
[1753844491414,3.07,181.74,181.68,3.23]
[1753844491911,3.07,181.72,181.68,3.23]
[1753844492313,3.07,181.72,181.68,8.7349]
[1753844493213,3.07,181.72,181.68,5.5049]
[1753844493415,3.07,181.71,181.68,5.5049]
[1753844493813,3.07,181.71,181.67,117.26]
[1753844494013,5.5042,181.71,181.67,117.26]
[1753844494216,3.07,181.7,181.67,120.49]
[1753844494714,3.07,181.7,181.68,5.5048]
[1753844494915,3.07,181.7,181.68,3.23]
[1753844495416,3.07,181.7,181.69,5.5047]
[1753844495617,3.07,181.7,181.69,8.7347]
[1753844498015,3.07,181.7,181.68,5.505]
[1753844499122,3.07,181.7,181.67,122.7652]
[1753844499315,3.07,181.7,181.68,3.23]
[1753844499617,3.07,181.7,181.69,5.5047]
[1753844499820,3.07,181.7,181.69,8.7347]
[1753844501716,3.07,181.7,181.67,117.26]
[1753844501717,15.6217141,181.82,181.72,5.5038]
[1753844501914,4.0468777,181.81,181.67,117.26]
[1753844502119,374.5001141,181.85,181.68,3.23]
[1753844502319,3.07,181.77,181.76,3.23]
[1753844503122,3.07,181.77,181.76,8.7324]
[1753844510429,3.07,181.77,181.76,5.5024]
[1753844510628,3.07,181.77,181.75,8.7328]
[1753844510934,3.07,181.77,181.72,120.51]
[1753844511131,3.07,181.77,181.74,5.5031]
[1753844511335,3.12,181.76,181.73,3.23]
[1753844511835,5.5018,181.79,181.75,8.7229]
[1753844512033,5.5018,181.79,181.76,3.22]
[1753844512235,3.12,181.78,181.76,8.7226]
[1753844512431,5.5015,181.8,181.76,3.22]
[1753844512631,3.12,181.86,181.73,3.22]
[1753844512836,4.05518559,181.85,181.76,5.5024]
[1753844513038,3.12,181.83,181.76,5.5024]
[1753844513440,3.12,181.83,181.75,3.22]
[1753844513636,3.12,181.83,181.73,3.22]
[1753844513835,3.12,181.81,181.73,3.22]
[1753844514036,5.5021,181.78,181.75,5.5028]
[1753844514232,3.12,181.77,181.75,5.5028]
[1753844514642,3.12,181.77,181.75,8.7228]
[1753844514841,3.12,181.76,181.75,8.7228]
[1753844515537,5.5023,181.77,181.74,8.7231]
[1753844515942,3.12,181.75,181.74,8.7231]
[1753844516850,3.12,181.75,181.74,5.5031]
[1753844517643,3.12,181.75,181.73,8.7234]
[1753844517844,3.12,181.75,181.72,117.28]
[1753844518050,3.12,181.75,181.72,120.5]
[1753844518448,5.5032,181.75,181.72,126.0038]
[1753844518648,3.12,181.74,181.72,126.0038]
[1753844518850,3.12,181.74,181.72,117.28]
[1753844519243,3.12,181.73,181.72,117.28]
[1753844520048,3.12,181.73,181.71,8.7239]
[1753844520444,3.12,181.72,181.71,8.7239]
[1753844521053,3.12,181.82,181.73,3.22]
[1753844521351,5.5022,181.78,181.73,3.22]
[1753844521551,3.12,181.77,181.73,3.22]
[1753844521946,5.5022,181.78,181.75,5.5027]
[1753844522150,5.5018,181.79,181.75,5.5027]
[1753844522343,3.12,181.77,181.68,117.24]
[1753844522544,3.12,181.77,181.69,3.22]
[1753844523954,3.12,181.77,181.74,3.22]
[1753844524255,3.12,181.77,181.75,3.22]
[1753844525154,3.12,181.77,181.68,117.24]
[1753844525354,3.12,181.77,181.74,3.22]
[1753844526449,3.12,181.77,181.75,5.5029]
[1753844528357,3.12,181.76,181.74,5.5031]
[1753844529659,3.12,181.76,181.74,5.5032]
[1753844529856,3.12,181.76,181.73,3.22]
[1753844530164,3.12,181.76,181.74,3.22]
[1753844530861,3.12,181.76,181.69,3.22]
[1753844531961,5.5032,181.74,181.71,5.5039]
[1753844532162,3.12,181.73,181.7,3.22]
[1753844533360,3.12,181.73,181.71,3.22]
[1753844534064,3.12,181.73,181.71,8.724]
[1753844536363,3.12,181.73,181.72,5.5038]
[1753844536758,3.12,181.76,181.72,3.22]
[1753844536961,3.12,181.78,181.72,3.22]
[1753844537561,3.12,181.78,181.77,5.5023]
[1753844537762,3.12,181.8,181.77,3.22]
[1753844538061,3.12,181.81,181.79,5.5014]
[1753844538261,3.12,181.81,181.8,3.22]
[1753844538458,3.12,181.81,181.79,5.5014]
[1753844540659,3.12,181.81,181.77,3.22]
[1753844540963,3.12,181.79,181.73,3.22]
[1753844541358,3.12,181.79,181.75,8.7427]
[1753844541567,3.12,181.79,181.75,3.24]
[1753844542259,3.13,181.77,181.73,3.24]
[1753844542460,3.13,181.77,181.74,3.24]
[1753844542857,8.6323,181.77,181.74,3.24]
[1753844543059,3.13,181.76,181.73,3.24]
[1753844543870,3.13,181.76,181.73,8.7433]
[1753844546269,3.13,181.76,181.74,5.5032]
[1753844546471,5.5021,181.78,181.75,3.24]
[1753844546672,3.13,181.76,181.75,3.24]
[1753844547062,5.5012,181.81,181.72,117.22]
[1753844547368,3.13,181.82,181.73,3.24]
[1753844548568,3.13,181.84,181.82,5.5006]
[1753844548865,4.6201141,181.88,181.82,3.24]
[1753844549067,4.08774504,181.87,181.82,3.24]
[1753844549265,4.08774504,181.86,181.82,3.24]
[1753844549464,4.6201141,181.91,181.79,117.2]
[1753844549465,3.13,181.9,181.79,120.44]
[1753844549666,3.13,181.88,181.8,3.24]
[1753844549867,3.13,181.86,181.8,3.24]
[1753844550067,3.13,181.86,181.83,8.7402]
[1753844551765,3.13,181.86,181.84,3.24]
[1753844551968,3.13,181.86,181.85,3.24]
[1753844554673,3.13,181.86,181.83,3.24]
[1753844554973,3.13,181.86,181.79,117.2]
[1753844555180,3.13,181.85,181.82,3.24]
[1753844555573,3.13,181.85,181.83,3.24]
[1753844556073,3.13,181.84,181.8,3.24]
[1753844556277,3.13,181.85,181.8,3.24]
[1753844556880,3.13,181.84,181.83,8.7405]
[1753844557974,3.13,181.86,181.84,5.5]
[1753844558175,3.13,181.86,181.85,3.24]
[1753844558574,3.13,181.86,181.83,5.5004]
[1753844558770,3.13,181.86,181.83,8.7404]
[1753844560280,3.13,181.85,181.84,5.5001]
[1753844560480,3.13,181.86,181.85,3.24]
[1753844560879,4.6201141,181.94,181.85,5.4999]
[1753844561078,3.13,181.87,181.86,3.24]
[1753844561882,3.13,181.87,181.86,8.7396]
[1753844562683,3.13,181.87,181.86,3.24]
[1753844565283,3.13,181.87,181.86,8.7396]
[1753844565784,3.13,181.9,181.89,3.24]
[1753844566684,3.13,181.89,181.88,3.24]
[1753844566987,3.13,181.89,181.87,3.24]
[1753844567280,3.13,181.87,181.84,3.24]
[1753844567782,5.4994,181.87,181.84,5.5001]
[1753844567984,3.13,181.85,181.84,8.7401]
[1753844570680,3.13,181.85,181.83,3.24]
[1753844570984,3.13,181.85,181.83,5.5003]
[1753844571186,3.13,181.85,181.84,3.24]
[1753844574089,3.13,181.85,181.84,8.7402]
[1753844575581,3.13,181.85,181.84,5.5002]
[1753844576285,3.13,181.85,181.84,8.5002]
[1753844577390,3.13,181.85,181.84,3.0]
[1753844579895,3.22,181.84,181.82,3.0]
[1753844580595,3.22,181.83,181.79,120.2]
[1753844580894,3.22,181.83,181.64,374.39521105]
[1753844580895,3.22,181.83,181.75,3.0]
[1753844581090,3.22,181.83,181.75,5.5026]
[1753844581489,3.22,181.83,181.74,3.0]
[1753844581686,3.22,181.77,181.75,3.0]
[1753844583299,3.22,181.77,181.75,8.5028]
[1753844583696,3.22,181.76,181.75,5.5028]
[1753844584200,3.22,181.75,181.74,8.5031]
[1753844586601,3.22,181.75,181.73,8.5034]
[1753844587200,4.6201141,181.87,181.73,8.5034]
[1753844587201,3.22,181.74,181.73,5.5034]
[1753844587400,3.22,181.74,181.73,8.5034]
[1753844587596,3.22,181.79,181.75,3.0]
[1753844588007,3.22,181.79,181.74,5.5029]
[1753844588308,3.22,181.79,181.74,8.5029]
[1753844588804,5.502,181.78,181.75,5.5028]
[1753844589007,3.22,181.8,181.76,3.0]
[1753844589708,5.5018,181.79,181.76,3.0]
[1753844589903,3.22,181.78,181.76,3.0]
[1753844590507,3.22,181.86,181.73,3.0]
[1753844590698,3.22,181.84,181.73,3.0]
[1753844590905,3.22,181.8,181.78,3.0]
[1753844591404,8.7217,181.8,181.72,486.98]
[1753844591704,3.22,181.78,181.74,3.0]
[1753844591912,3.22,181.8,181.74,3.0]
[1753844592110,5.501,181.82,181.77,5.502]
[1753844592310,3.22,181.79,181.78,3.0]
[1753844594807,3.22,181.79,181.77,5.502]
[1753844595014,3.22,181.79,181.76,5.5025]
[1753844595310,3.22,181.79,181.76,8.5025]
[1753844596619,3.22,181.78,181.77,8.5021]
[1753844596918,3.22,181.78,181.72,486.98]
[1753844596919,3.22,181.78,181.75,8.5027]
[1753844597323,3.22,181.78,181.75,3.0]
[1753844598219,5.502,181.78,181.75,5.5028]
[1753844598418,3.22,181.77,181.75,5.5028]
[1753844598921,3.22,181.76,181.74,5.5031]
[1753844599723,5.5027,181.76,181.73,5.5035]
[1753844600019,3.22,181.75,181.73,5.5035]
[1753844600322,3.22,181.75,181.73,8.5035]
[1753844601317,2.96,181.76,181.72,117.12]
[1753844601524,4.59106076,181.85,181.72,117.12]
[1753844601821,4.04963412,181.84,181.72,117.12]
[1753844602121,4.59106076,181.85,181.72,117.12]
[1753844602122,2.96,181.74,181.72,117.12]
[1753844602622,8.4635,181.73,181.72,117.12]
[1753844602824,2.96,181.72,181.66,3.05]
[1753844603017,2.96,181.71,181.67,117.16]
[1753844603219,2.96,181.7,181.69,3.05]
[1753844605520,2.96,181.7,181.69,8.5547]
[1753844605921,2.96,181.72,181.69,8.5547]
[1753844606320,2.96,181.72,181.69,5.5047]
[1753844606622,8.4638,181.72,181.68,117.16]
[1753844606823,2.96,181.71,181.68,117.16]
[1753844607614,5.5042,181.71,181.68,117.16]
[1753844607818,2.96,181.82,181.65,0.95774105]
[1753844608018,4.02711114,181.81,181.67,3.05]
[1753844608218,2.96,181.79,181.68,5.5048]
[1753844608420,2.96,181.79,181.68,8.5548]
[1753844609123,2.96,181.79,181.69,5.5047]
[1753844609322,2.96,181.79,181.7,3.05]
[1753844610126,2.96,181.72,181.7,8.5544]
[1753844610326,2.96,181.71,181.7,5.5044]
[1753844610526,2.96,181.71,181.66,117.16]
[1753844610527,2.96,181.82,181.66,117.16]
[1753844610727,2.96,181.8,181.71,8.5539]
[1753844611122,4.02808719,181.79,181.71,8.5539]
[1753844611327,2.96,181.78,181.71,8.5539]
[1753844611523,5.5026,181.76,181.71,8.5539]
[1753844611722,2.96,181.75,181.72,3.05]
[1753844611925,2.96,181.77,181.67,3.05]
[1753844612121,2.96,181.76,181.67,3.05]
[1753844612319,2.96,181.76,181.74,5.5032]
[1753844612628,2.96,181.76,181.74,8.5532]
[1753844612828,2.96,181.75,181.67,3.05]
[1753844614330,2.96,181.75,181.72,5.5036]
[1753844614636,2.96,181.75,181.72,8.5536]
[1753844615028,2.96,181.74,181.73,8.5534]
[1753844615531,2.96,181.76,181.73,8.5534]
[1753844615731,2.96,181.76,181.66,117.16]
[1753844615732,2.96,181.75,181.74,8.5532]
[1753844617032,4.59106076,181.86,181.76,3.05]
[1753844617235,4.03880867,181.85,181.73,3.05]
[1753844617434,5.5007,181.83,181.73,3.05]
[1753844617735,4.59106076,181.93,181.8,3.05]
[1753844617934,2.96,181.86,181.8,3.05]
[1753844619739,5.4993,181.87,181.83,5.5002]
[1753844620042,2.96,181.85,181.84,3.05]
[1753844620237,2.96,181.85,181.84,8.5502]
[1753844621631,121.73106076,181.95,181.86,5.4995]
[1753844621832,2.96,181.93,181.86,3.05]
[1753844622039,2.96,181.91,181.86,3.05]
[1753844622242,2.96,181.96,181.88,3.05]
[1753844622443,2.96,181.94,181.88,3.05]
[1753844622749,2.96,181.93,181.8,3.05]
[1753844624646,2.96,181.96,181.93,3.05]
[1753844625145,2.96,181.96,181.92,8.5475]
[1753844625345,2.96,181.96,181.92,3.05]
[1753844625948,2.96,181.95,181.92,3.05]
[1753844626448,2.96,181.95,181.89,3.05]
[1753844626647,2.96,181.94,181.91,8.5481]
[1753844628041,8.4574,181.94,181.89,8.5486]
[1753844628252,2.96,181.93,181.89,3.05]
[1753844628550,2.96,181.93,181.9,3.05]
[1753844628846,124.0,182.02,181.9,8.5481]
[1753844629046,6.99175955,182.01,181.9,8.5481]
[1753844629247,2.96,181.99,181.9,8.5481]
[1753844629452,5.4971,181.95,181.9,8.5481]
[1753844629652,2.96,181.94,181.91,3.05]
[1753844629951,2.96,181.94,181.91,8.548]
[1753844630346,8.4572,181.94,181.91,3.05]
[1753844630541,2.96,181.93,181.91,3.05]
[1753844631351,2.93,181.92,181.91,8.5481]
[1753844632248,2.93,181.94,181.91,8.5481]
[1753844632449,2.93,181.93,181.92,3.0]
[1753844633051,2.93,181.95,181.93,3.0]
[1753844633255,2.93,181.94,181.9,3.0]
[1753844633455,2.93,181.94,181.89,3.0]
[1753844633755,8.4274,181.94,181.9,8.4981]
[1753844634048,8.4274,181.94,181.91,3.0]
[1753844634254,2.93,181.93,181.91,3.0]
[1753844634455,2.93,181.94,181.91,8.498]
[1753844634747,2.93,181.94,181.92,3.0]
[1753844636054,2.93,181.94,181.88,117.12]
[1753844636055,8.4272,181.94,181.9,8.4983]
[1753844636256,2.93,181.93,181.91,3.0]
[1753844637457,2.93,181.94,181.91,8.4981]
[1753844637951,124.0,182.02,181.89,3.0]
[1753844638159,2.93,182.01,181.89,3.0]
[1753844638453,5.4969,181.95,181.88,117.12]
[1753844638655,2.93,182.01,181.89,3.0]
[1753844639353,2.93,181.95,181.93,3.0]
[1753844640652,2.93,181.94,181.88,117.12]
[1753844640848,2.93,181.94,181.89,3.0]
[1753844641858,2.93,181.94,181.88,117.12]
[1753844641859,2.93,181.93,181.9,3.0]
[1753844642157,2.93,181.93,181.89,3.0]
[1753844642561,2.93,181.93,181.9,3.0]
[1753844642752,2.93,181.93,181.9,8.4983]
[1753844643258,2.93,181.93,181.88,117.12]
[1753844644062,2.93,181.91,181.88,125.6189]
[1753844644250,2.93,181.91,181.88,122.6189]
[1753844644451,2.93,181.91,181.89,3.0]
[1753844645356,8.4281,181.91,181.89,3.0]
[1753844645550,2.93,181.9,181.88,117.12]
[1753844645752,2.93,181.9,181.83,3.0]
[1753844646355,129.54809067,182.02,181.82,117.04]
[1753844646551,2.93,181.87,181.84,3.0]
[1753844646758,2.93,181.87,181.85,3.0]
[1753844646959,2.93,181.86,181.85,3.0]
[1753844648363,2.93,181.86,181.85,8.4999]
[1753844649162,2.93,181.86,181.85,3.0]
[1753844649352,2.93,181.86,181.82,120.04]
[1753844649557,2.93,181.86,181.83,3.0]
[1753844649959,2.93,181.86,181.83,8.5002]
[1753844651565,2.93,181.86,181.82,117.04]
[1753844651566,2.93,181.86,181.85,3.0]
[1753844653364,2.93,181.87,181.85,3.0]
[1753844653663,15.58276076,181.99,181.85,3.0]
[1753844653964,2.93,181.88,181.87,3.0]
[1753844654261,2.93,181.88,181.86,5.4993]
[1753844654464,2.93,181.88,181.86,8.4993]
[1753844655067,2.93,181.88,181.84,5.5001]
[1753844655463,5.4995,181.87,181.83,5.5004]
[1753844655665,4.59106076,181.97,181.83,5.5004]
[1753844655866,2.93,181.86,181.82,120.04]
[1753844656062,5.4999,181.86,181.82,122.5406]
[1753844656266,2.93,181.85,181.82,120.04]
[1753844656468,2.93,181.85,181.83,3.0]
[1753844657268,2.93,181.85,181.84,3.0]
[1753844657762,2.93,181.85,181.82,122.5407]
[1753844657963,2.93,181.85,181.82,117.04]
[1753844658170,2.93,181.93,181.83,8.5004]
[1753844658469,2.93,181.91,181.82,117.04]
[1753844658671,2.93,181.89,181.83,3.0]
[1753844659267,8.4289,181.89,181.85,5.4996]
[1753844659471,2.93,181.87,181.86,3.0]
[1753844661063,2.93,181.87,181.85,5.4998]
[1753844661264,4.59106076,181.93,181.85,5.4998]
[1753844661471,3.13,181.92,181.86,5.4996]
[1753844661671,4.05081206,181.91,181.85,3.05]
[1753844661973,3.13,181.86,181.82,117.04]
[1753844662174,3.13,181.86,181.83,3.05]